[Event "Titled Tuesday Blitz November 14 Early 2023"]
[White "Hafiz, Arif Abdul"]
[Black "Ahn, Hongjin"]
[WhiteFideId "7104227"]
[BlackFideId "13201492"]
[WhiteElo "2835"]
[BlackElo "2478"]
[Result "1-0"]
[Round "1"]
[TimeControl "180+1"]
[Date "2023.11.14"]
[WhiteClock "0:00:14"]
[BlackClock "0:00:01"]
[Board "66"]

1. e4 {[%clk 0:02:57]}  c5 {[%clk 0:03:00]} 2. Nc3 {[%clk 0:02:56]}  e6 {[%clk 0:02:59]} 3. f4 {[%clk 0:02:56]}  Nc6 {[%clk 0:02:58]} 4. Nf3 {[%clk 0:02:57]}  d5 {[%clk 0:02:57]} 5. Bb5 {[%clk 0:02:58]}  dxe4 {[%clk 0:02:56]} 6. Bxc6+ {[%clk 0:02:58]}  bxc6 {[%clk 0:02:56]} 7. Nxe4 {[%clk 0:02:59]}  Be7 {[%clk 0:02:53]} 8. d3 {[%clk 0:02:59]}  Nf6 {[%clk 0:02:54]} 9. Qe2 {[%clk 0:02:57]}  Rb8 {[%clk 0:02:50]} 10. b3 {[%clk 0:02:56]}  Nd5 {[%clk 0:02:45]} 11. Bd2 {[%clk 0:02:52]}  O-O {[%clk 0:02:40]} 12. O-O {[%clk 0:02:52]}  h6 {[%clk 0:02:28]} 13. Rae1 {[%clk 0:02:48]}  f5 {[%clk 0:02:28]} 14. Ng3 {[%clk 0:02:40]}  Bf6 {[%clk 0:02:23]} 15. Ne5 {[%clk 0:02:37]}  Qe8 {[%clk 0:02:15]} 16. c4 {[%clk 0:02:29]}  Nb4 {[%clk 0:02:08]} 17. Bc3 {[%clk 0:02:29]}  a5 {[%clk 0:01:57]} 18. Nh5 {[%clk 0:02:18]}  Bh4 {[%clk 0:01:38]} 19. Rd1 {[%clk 0:02:03]}  a4 {[%clk 0:01:29]} 20. Nxg7 {[%clk 0:01:48]}  Kxg7 {[%clk 0:01:20]} 21. Nd7+ {[%clk 0:01:48]}  Kh7 {[%clk 0:01:09]} 22. Nxb8 {[%clk 0:01:37]}  Bb7 {[%clk 0:01:02]} 23. a3 {[%clk 0:01:35]}  Qxb8 {[%clk 0:00:53]} 24. axb4 {[%clk 0:01:31]}  cxb4 {[%clk 0:00:54]} 25. Bxb4 {[%clk 0:01:26]}  c5 {[%clk 0:00:54]} 26. Bxc5 {[%clk 0:01:24]}  Rg8 {[%clk 0:00:54]} 27. g3 {[%clk 0:01:22]}  Qc8 {[%clk 0:00:14]} 28. d4 {[%clk 0:01:03]}  Qc6 {[%clk 0:00:14]} 29. Kf2 {[%clk 0:01:04]}  axb3 {[%clk 0:00:04]} 30. Ke1 {[%clk 0:00:53]}  Bf6 {[%clk 0:00:03]} 31. Rb1 {[%clk 0:00:49]}  Qa4 {[%clk 0:00:02]} 32. Qd3 {[%clk 0:00:41]}  Be4 {[%clk 0:00:02]} 33. Qxb3 {[%clk 0:00:41]}  Qa5+ {[%clk 0:00:02]} 34. Qb4 {[%clk 0:00:41]}  Qa2 {[%clk 0:00:02]} 35. Rb2 {[%clk 0:00:34]}  Qa1+ {[%clk 0:00:03]} 36. Kf2 {[%clk 0:00:33]}  Qa6 {[%clk 0:00:02]} 37. Qb5 {[%clk 0:00:30]}  Qa8 {[%clk 0:00:01]} 38. Qd7+ {[%clk 0:00:26]}  Kg6 {[%clk 0:00:02]} 39. Qxe6 {[%clk 0:00:23]}  Re8 {[%clk 0:00:02]} 40. Qd6 {[%clk 0:00:18]}  Bg2 {[%clk 0:00:03]} 41. d5 {[%clk 0:00:14]}  Bxf1 {[%clk 0:00:03]} 42. Bd4 {[%clk 0:00:14]}  Rf8 {[%clk 0:00:02]} 43. Kxf1 {[%clk 0:00:14]}  Qa1+ {[%clk 0:00:02]} 44. Kg2 {[%clk 0:00:13]}  Rf7 {[%clk 0:00:03]} 45. Bxf6 {[%clk 0:00:13]}  Rxf6 {[%clk 0:00:03]} 46. Qe5 {[%clk 0:00:14]}  Qd1 {[%clk 0:00:02]} 47. Qe2 {[%clk 0:00:14]}  Qd4 {[%clk 0:00:02]} 48. Rd2 {[%clk 0:00:14]}  Qc5 {[%clk 0:00:02]} 49. Qd3 {[%clk 0:00:15]}  Rd6 {[%clk 0:00:02]} 50. g4 {[%clk 0:00:15]}  Rf6 {[%clk 0:00:02]} 51. d6 {[%clk 0:00:15]}  Qc6+ {[%clk 0:00:02]} 52. Qd5 {[%clk 0:00:15]}  Qa4 {[%clk 0:00:01]} 53. Qg8# {[%clk 0:00:14]} 1-0


[Site "https://www.chess.com"]

[Event "Titled Tuesday Blitz November 14 Early 2023"]
[White "Kanyamarala, Tarun"]
[Black "Mikhailovsky, Vladimir"]
[WhiteFideId "45004714"]
[BlackFideId "34105414"]
[WhiteElo "2478"]
[BlackElo "2833"]
[Result "0-1"]
[Round "1"]
[TimeControl "180+1"]
[Date "2023.11.14"]
[WhiteClock "0:00:06"]
[BlackClock "0:00:09"]
[Board "67"]

1. d4 {[%clk 0:03:00]}  d6 {[%clk 0:02:56]} 2. e4 {[%clk 0:03:00]}  Nf6 {[%clk 0:02:52]} 3. Nc3 {[%clk 0:03:00]}  Nbd7 {[%clk 0:02:52]} 4. Nf3 {[%clk 0:02:59]}  e5 {[%clk 0:02:52]} 5. Bc4 {[%clk 0:02:58]}  Be7 {[%clk 0:02:52]} 6. O-O {[%clk 0:02:56]}  O-O {[%clk 0:02:52]} 7. a4 {[%clk 0:02:52]}  a5 {[%clk 0:02:52]} 8. h3 {[%clk 0:02:47]}  c6 {[%clk 0:02:52]} 9. Ba2 {[%clk 0:02:46]}  Qc7 {[%clk 0:02:49]} 10. Re1 {[%clk 0:02:45]}  Nb6 {[%clk 0:02:47]} 11. Be3 {[%clk 0:02:42]}  Nfd7 {[%clk 0:02:44]} 12. Qd2 {[%clk 0:02:37]}  exd4 {[%clk 0:02:44]} 13. Nxd4 {[%clk 0:02:27]}  Nc5 {[%clk 0:02:43]} 14. b3 {[%clk 0:01:55]}  Bf6 {[%clk 0:02:31]} 15. f3 {[%clk 0:01:54]}  Rd8 {[%clk 0:01:48]} 16. Bf4 {[%clk 0:01:46]}  Be5 {[%clk 0:01:44]} 17. Rad1 {[%clk 0:01:42]}  Ne6 {[%clk 0:01:39]} 18. Nxe6 {[%clk 0:01:06]}  Bxe6 {[%clk 0:01:39]} 19. Kh1 {[%clk 0:00:54]}  Nd7 {[%clk 0:01:29]} 20. Bb1 {[%clk 0:00:51]}  Nf6 {[%clk 0:01:24]} 21. Ne2 {[%clk 0:00:41]}  Nh5 {[%clk 0:01:18]} 22. Bxe5 {[%clk 0:00:29]}  dxe5 {[%clk 0:01:17]} 23. Qg5 {[%clk 0:00:29]}  g6 {[%clk 0:00:48]} 24. c4 {[%clk 0:00:24]}  f6 {[%clk 0:00:46]} 25. Qh6 {[%clk 0:00:20]}  Qe7 {[%clk 0:00:44]} 26. g4 {[%clk 0:00:17]}  Ng7 {[%clk 0:00:41]} 27. h4 {[%clk 0:00:17]}  Qc5 {[%clk 0:00:35]} 28. Kg2 {[%clk 0:00:14]}  Qa3 {[%clk 0:00:13]} 29. Bc2 {[%clk 0:00:14]}  Qb2 {[%clk 0:00:13]} 30. Qc1 {[%clk 0:00:14]}  Qxc1 {[%clk 0:00:11]} 31. Nxc1 {[%clk 0:00:14]}  Bf7 {[%clk 0:00:10]} 32. Nd3 {[%clk 0:00:14]}  Ne6 {[%clk 0:00:10]} 33. Rd2 {[%clk 0:00:12]}  Rd7 {[%clk 0:00:09]} 34. Bd1 {[%clk 0:00:10]}  Rad8 {[%clk 0:00:09]} 35. Re3 {[%clk 0:00:10]}  Rxd3 {[%clk 0:00:08]} 36. Rexd3 {[%clk 0:00:10]}  Rxd3 {[%clk 0:00:09]} 37. Rxd3 {[%clk 0:00:11]}  Nf4+ {[%clk 0:00:10]} 38. Kf2 {[%clk 0:00:11]}  Nxd3+ {[%clk 0:00:11]} 39. Ke3 {[%clk 0:00:11]}  Nb4 {[%clk 0:00:11]} 40. Be2 {[%clk 0:00:11]}  Kf8 {[%clk 0:00:10]} 41. Kd2 {[%clk 0:00:11]}  g5 {[%clk 0:00:10]} 42. h5 {[%clk 0:00:11]}  h6 {[%clk 0:00:09]} 43. Kc3 {[%clk 0:00:11]}  b6 {[%clk 0:00:08]} 44. Bf1 {[%clk 0:00:11]}  Ke7 {[%clk 0:00:08]} 45. Be2 {[%clk 0:00:11]}  Kd6 {[%clk 0:00:09]} 46. Bf1 {[%clk 0:00:12]}  Kc5 {[%clk 0:00:09]} 47. Be2 {[%clk 0:00:12]}  Be8 {[%clk 0:00:09]} 48. Bf1 {[%clk 0:00:12]}  b5 {[%clk 0:00:10]} 49. Be2 {[%clk 0:00:10]}  bxa4 {[%clk 0:00:10]} 50. bxa4 {[%clk 0:00:11]}  Na6 {[%clk 0:00:09]} 51. Bf1 {[%clk 0:00:11]}  Kb6 {[%clk 0:00:08]} 52. Be2 {[%clk 0:00:11]}  Nc5 {[%clk 0:00:09]} 53. Bd1 {[%clk 0:00:11]}  Ne6 {[%clk 0:00:09]} 54. Bc2 {[%clk 0:00:11]}  Kc5 {[%clk 0:00:09]} 55. Bd1 {[%clk 0:00:06]}  Nd4 {[%clk 0:00:09]} 0-1


[Site "https://www.chess.com"]

[Event "Titled Tuesday Blitz November 14 Early 2023"]
[White "Kozak, Antoni"]
[Black "Pinero Rodriguez, Carlos Jose"]
[WhiteFideId "21832030"]
[BlackFideId "3901726"]
[WhiteElo "2827"]
[BlackElo "2475"]
[Result "1-0"]
[Round "1"]
[TimeControl "180+1"]
[Date "2023.11.14"]
[WhiteClock "0:01:37"]
[BlackClock "0:01:49"]
[Board "70"]

1. e4 {[%clk 0:02:58]}  c5 {[%clk 0:02:59]} 2. Nf3 {[%clk 0:02:58]}  e6 {[%clk 0:02:59]} 3. Nc3 {[%clk 0:02:58]}  a6 {[%clk 0:02:59]} 4. g3 {[%clk 0:02:57]}  Nc6 {[%clk 0:02:58]} 5. Bg2 {[%clk 0:02:58]}  d6 {[%clk 0:02:56]} 6. O-O {[%clk 0:02:44]}  Bd7 {[%clk 0:02:56]} 7. d4 {[%clk 0:02:45]}  cxd4 {[%clk 0:02:55]} 8. Nxd4 {[%clk 0:02:45]}  Be7 {[%clk 0:02:53]} 9. Be3 {[%clk 0:02:43]}  Nf6 {[%clk 0:02:53]} 10. Nb3 {[%clk 0:02:40]}  O-O {[%clk 0:02:53]} 11. a4 {[%clk 0:02:39]}  Na5 {[%clk 0:02:45]} 12. Qd3 {[%clk 0:02:18]}  Rc8 {[%clk 0:02:43]} 13. Nxa5 {[%clk 0:02:17]}  Qxa5 {[%clk 0:02:43]} 14. Rfd1 {[%clk 0:02:16]}  Ng4 {[%clk 0:02:34]} 15. Bd4 {[%clk 0:02:06]}  Ne5 {[%clk 0:02:30]} 16. Qe2 {[%clk 0:01:53]}  Qb4 {[%clk 0:02:19]} 17. Bxe5 {[%clk 0:01:45]}  dxe5 {[%clk 0:02:11]} 18. Rxd7 {[%clk 0:01:45]}  Qxb2 {[%clk 0:02:12]} 19. Rb1 {[%clk 0:01:39]}  Qxc3 {[%clk 0:01:49]} 20. Rxe7 {[%clk 0:01:37]} 1-0


[Site "https://www.chess.com"]

[Event "Titled Tuesday Blitz November 14 Early 2023"]
[White "Kezin, Roman"]
[Black "Ramla2020"]
[WhiteFideId "24124621"]
[WhiteElo "2825"]
[BlackElo "2473"]
[Result "1-0"]
[Round "1"]
[TimeControl "180+1"]
[Date "2023.11.14"]
[WhiteClock "0:00:10"]
[BlackClock "0:00:53"]
[Board "72"]

1. d4 {[%clk 0:02:53]}  Nf6 {[%clk 0:02:59]} 2. c4 {[%clk 0:02:46]}  e6 {[%clk 0:02:58]} 3. Nc3 {[%clk 0:02:43]}  Bb4 {[%clk 0:02:58]} 4. e3 {[%clk 0:02:36]}  O-O {[%clk 0:02:56]} 5. Bd3 {[%clk 0:02:30]}  d5 {[%clk 0:02:55]} 6. a3 {[%clk 0:02:27]}  Bxc3+ {[%clk 0:02:54]} 7. bxc3 {[%clk 0:02:27]}  dxc4 {[%clk 0:02:54]} 8. Bxc4 {[%clk 0:02:18]}  c5 {[%clk 0:02:55]} 9. Nf3 {[%clk 0:02:15]}  b6 {[%clk 0:02:53]} 10. O-O {[%clk 0:02:14]}  Ba6 {[%clk 0:02:53]} 11. Bxa6 {[%clk 0:02:13]}  Nxa6 {[%clk 0:02:54]} 12. Qe2 {[%clk 0:02:14]}  Qc8 {[%clk 0:02:53]} 13. e4 {[%clk 0:02:13]}  Nc7 {[%clk 0:02:41]} 14. Bg5 {[%clk 0:02:12]}  Nd7 {[%clk 0:02:38]} 15. Rad1 {[%clk 0:02:01]}  Qa6 {[%clk 0:02:37]} 16. Qb2 {[%clk 0:01:51]}  Rfe8 {[%clk 0:02:29]} 17. d5 {[%clk 0:01:43]}  exd5 {[%clk 0:02:28]} 18. exd5 {[%clk 0:01:42]}  Nb5 {[%clk 0:02:27]} 19. c4 {[%clk 0:01:34]}  Nd6 {[%clk 0:02:26]} 20. Bf4 {[%clk 0:01:26]}  Nxc4 {[%clk 0:02:20]} 21. Qc3 {[%clk 0:01:27]}  b5 {[%clk 0:02:20]} 22. Rd3 {[%clk 0:01:19]}  Re4 {[%clk 0:02:18]} 23. Bg3 {[%clk 0:01:18]}  Rae8 {[%clk 0:02:18]} 24. h4 {[%clk 0:01:17]}  h6 {[%clk 0:02:17]} 25. Kh2 {[%clk 0:01:08]}  Qf6 {[%clk 0:02:14]} 26. Qc2 {[%clk 0:01:08]}  Re2 {[%clk 0:02:11]} 27. Qd1 {[%clk 0:01:06]}  Nb2 {[%clk 0:02:09]} 28. Qb3 {[%clk 0:00:59]}  Nxd3 {[%clk 0:02:08]} 29. Qxd3 {[%clk 0:00:59]}  c4 {[%clk 0:02:09]} 30. Qb1 {[%clk 0:00:59]}  a6 {[%clk 0:02:08]} 31. Qb4 {[%clk 0:00:56]}  Rb2 {[%clk 0:02:03]} 32. Qa5 {[%clk 0:00:55]}  Nc5 {[%clk 0:02:02]} 33. Qc7 {[%clk 0:00:54]}  Ne4 {[%clk 0:01:59]} 34. Be5 {[%clk 0:00:54]}  Qe7 {[%clk 0:01:57]} 35. Qxe7 {[%clk 0:00:53]}  Rxe7 {[%clk 0:01:57]} 36. Bxb2 {[%clk 0:00:54]}  c3 {[%clk 0:01:52]} 37. Bc1 {[%clk 0:00:49]}  Rd7 {[%clk 0:01:52]} 38. Be3 {[%clk 0:00:37]}  Rxd5 {[%clk 0:01:50]} 39. Rc1 {[%clk 0:00:38]}  a5 {[%clk 0:01:50]} 40. Nd4 {[%clk 0:00:37]}  b4 {[%clk 0:01:50]} 41. axb4 {[%clk 0:00:38]}  axb4 {[%clk 0:01:50]} 42. Rb1 {[%clk 0:00:38]}  Rxd4 {[%clk 0:01:25]} 43. Bxd4 {[%clk 0:00:39]}  c2 {[%clk 0:01:26]} 44. Ra1 {[%clk 0:00:38]}  Nd2 {[%clk 0:01:17]} 45. Ra8+ {[%clk 0:00:32]}  Kh7 {[%clk 0:01:17]} 46. Rc8 {[%clk 0:00:32]}  b3 {[%clk 0:01:16]} 47. Bb2 {[%clk 0:00:29]}  Ne4 {[%clk 0:01:01]} 48. Kg1 {[%clk 0:00:28]}  f5 {[%clk 0:01:01]} 49. f3 {[%clk 0:00:24]}  Nd2 {[%clk 0:00:58]} 50. Rc3 {[%clk 0:00:22]}  g5 {[%clk 0:00:56]} 51. Kf2 {[%clk 0:00:19]}  gxh4 {[%clk 0:00:56]} 52. Ke2 {[%clk 0:00:16]}  Nb1 {[%clk 0:00:53]} 53. Rxb3 {[%clk 0:00:16]}  Kg6 {[%clk 0:00:53]} 54. Kd3 {[%clk 0:00:14]}  Kg5 {[%clk 0:00:50]} 55. Kxc2 {[%clk 0:00:13]}  Kf4 {[%clk 0:00:50]} 56. Kxb1 {[%clk 0:00:13]}  Kg3 {[%clk 0:00:51]} 57. Bf6 {[%clk 0:00:12]}  Kxg2 {[%clk 0:00:52]} 58. Bxh4 {[%clk 0:00:12]}  Kh3 {[%clk 0:00:53]} 59. Bf6 {[%clk 0:00:12]}  h5 {[%clk 0:00:54]} 60. f4+ {[%clk 0:00:05]}  Kg2 {[%clk 0:00:54]} 61. Bh4 {[%clk 0:00:05]}  Kh2 {[%clk 0:00:54]} 62. Kc2 {[%clk 0:00:06]}  Kg2 {[%clk 0:00:55]} 63. Rc3 {[%clk 0:00:06]}  Kh2 {[%clk 0:00:55]} 64. Rd3 {[%clk 0:00:07]}  Kg2 {[%clk 0:00:56]} 65. Kc3 {[%clk 0:00:08]}  Kh2 {[%clk 0:00:56]} 66. Kd4 {[%clk 0:00:09]}  Kg2 {[%clk 0:00:53]} 67. Kc4 {[%clk 0:00:10]} 1-0


[Site "https://www.chess.com"]

[Event "Titled Tuesday Blitz November 14 Early 2023"]
[White "Manukyan, Sargis V."]
[Black "Fernandez, Daniel"]
[WhiteFideId "13303465"]
[BlackFideId "2015390"]
[WhiteElo "2471"]
[BlackElo "2823"]
[Result "1/2-1/2"]
[Round "1"]
[TimeControl "180+1"]
[Date "2023.11.14"]
[WhiteClock "0:00:08"]
[BlackClock "0:00:27"]
[Board "73"]

1. d4 {[%clk 0:02:58]}  Nf6 {[%clk 0:02:58]} 2. Nf3 {[%clk 0:02:58]}  d5 {[%clk 0:02:55]} 3. c4 {[%clk 0:02:58]}  e6 {[%clk 0:02:55]} 4. g3 {[%clk 0:02:57]}  Be7 {[%clk 0:02:51]} 5. Bg2 {[%clk 0:02:57]}  O-O {[%clk 0:02:51]} 6. O-O {[%clk 0:02:58]}  dxc4 {[%clk 0:02:51]} 7. Qc2 {[%clk 0:02:57]}  Bd7 {[%clk 0:02:42]} 8. Qxc4 {[%clk 0:02:52]}  Bc6 {[%clk 0:02:41]} 9. Nc3 {[%clk 0:02:43]}  Nbd7 {[%clk 0:02:10]} 10. Bg5 {[%clk 0:02:33]}  h6 {[%clk 0:02:10]} 11. Bxf6 {[%clk 0:02:22]}  Bxf6 {[%clk 0:02:11]} 12. e4 {[%clk 0:02:06]}  Nb6 {[%clk 0:02:11]} 13. Qd3 {[%clk 0:02:06]}  Be7 {[%clk 0:02:09]} 14. Rfd1 {[%clk 0:01:53]}  a5 {[%clk 0:02:06]} 15. Rac1 {[%clk 0:01:49]}  a4 {[%clk 0:02:07]} 16. a3 {[%clk 0:01:49]}  Re8 {[%clk 0:02:03]} 17. Ne5 {[%clk 0:01:48]}  Bd7 {[%clk 0:02:00]} 18. d5 {[%clk 0:01:30]}  exd5 {[%clk 0:01:59]} 19. Nxd5 {[%clk 0:01:28]}  Nxd5 {[%clk 0:01:52]} 20. Qxd5 {[%clk 0:01:23]}  Be6 {[%clk 0:01:52]} 21. Qxb7 {[%clk 0:01:21]}  Qb8 {[%clk 0:01:50]} 22. Rxc7 {[%clk 0:00:56]}  Bf6 {[%clk 0:01:34]} 23. Nc6 {[%clk 0:00:41]}  Qxb7 {[%clk 0:01:33]} 24. Rxb7 {[%clk 0:00:41]}  Bb3 {[%clk 0:01:32]} 25. Rd2 {[%clk 0:00:34]}  Rac8 {[%clk 0:01:30]} 26. e5 {[%clk 0:00:33]}  Bxe5 {[%clk 0:01:25]} 27. Nxe5 {[%clk 0:00:34]}  Rxe5 {[%clk 0:01:26]} 28. h4 {[%clk 0:00:31]}  Rec5 {[%clk 0:01:20]} 29. Be4 {[%clk 0:00:27]}  Re8 {[%clk 0:01:19]} 30. Re7 {[%clk 0:00:24]}  Rec8 {[%clk 0:01:13]} 31. Rdd7 {[%clk 0:00:20]}  Rb5 {[%clk 0:01:06]} 32. Kg2 {[%clk 0:00:15]}  Be6 {[%clk 0:01:03]} 33. Rb7 {[%clk 0:00:15]}  Rb3 {[%clk 0:01:03]} 34. Rxb3 {[%clk 0:00:14]}  axb3 {[%clk 0:01:03]} 35. a4 {[%clk 0:00:12]}  Kf8 {[%clk 0:01:04]} 36. Rb7 {[%clk 0:00:11]}  Rc1 {[%clk 0:01:02]} 37. a5 {[%clk 0:00:12]}  Ra1 {[%clk 0:01:03]} 38. Rb5 {[%clk 0:00:11]}  Ra2 {[%clk 0:01:00]} 39. Bb7 {[%clk 0:00:11]}  Rxb2 {[%clk 0:01:00]} 40. a6 {[%clk 0:00:11]}  Ra2 {[%clk 0:01:00]} 41. Kf3 {[%clk 0:00:10]}  b2 {[%clk 0:01:00]} 42. Ke3 {[%clk 0:00:10]}  Bf5 {[%clk 0:00:59]} 43. Be4 {[%clk 0:00:10]}  Be6 {[%clk 0:00:43]} 44. a7 {[%clk 0:00:09]}  Rxa7 {[%clk 0:00:42]} 45. Rxb2 {[%clk 0:00:09]}  Ra3+ {[%clk 0:00:41]} 46. Ke2 {[%clk 0:00:08]}  Ke7 {[%clk 0:00:42]} 47. Rd2 {[%clk 0:00:07]}  g5 {[%clk 0:00:42]} 48. hxg5 {[%clk 0:00:06]}  hxg5 {[%clk 0:00:42]} 49. Bd3 {[%clk 0:00:07]}  Kf6 {[%clk 0:00:43]} 50. f4 {[%clk 0:00:07]}  Ra1 {[%clk 0:00:36]} 51. fxg5+ {[%clk 0:00:05]}  Kxg5 {[%clk 0:00:36]} 52. Kf2 {[%clk 0:00:06]}  Rh1 {[%clk 0:00:35]} 53. Be2 {[%clk 0:00:06]}  Rh2+ {[%clk 0:00:34]} 54. Ke3 {[%clk 0:00:07]}  Rh8 {[%clk 0:00:28]} 55. Bf3 {[%clk 0:00:07]}  Re8 {[%clk 0:00:27]} 56. Rd4 {[%clk 0:00:07]}  Bf5+ {[%clk 0:00:26]} 57. Kf2 {[%clk 0:00:07]}  Rb8 {[%clk 0:00:27]} 58. Rf4 {[%clk 0:00:07]}  Rb2+ {[%clk 0:00:27]} 59. Ke3 {[%clk 0:00:08]}  Rb3+ {[%clk 0:00:27]} 60. Kf2 {[%clk 0:00:08]}  Bg6 {[%clk 0:00:27]} 61. Rd4 {[%clk 0:00:07]}  Rb2+ {[%clk 0:00:27]} 62. Ke3 {[%clk 0:00:06]}  Rb3+ {[%clk 0:00:26]} 63. Kf2 {[%clk 0:00:07]}  Rb2+ {[%clk 0:00:26]} 64. Ke3 {[%clk 0:00:07]}  Rb3+ {[%clk 0:00:27]} 65. Kf2 {[%clk 0:00:08]} 1/2-1/2


[Site "https://www.chess.com"]

[Event "Titled Tuesday Blitz November 14 Early 2023"]
[White "Alexandre, Anne Shopie Elizabeth"]
[Black "Yurasova, Daria"]
[WhiteFideId "11902418"]
[BlackFideId "34146919"]
[WhiteElo "2823"]
[BlackElo "2471"]
[Result "1-0"]
[Round "1"]
[TimeControl "180+1"]
[Date "2023.11.14"]
[WhiteClock "0:00:51"]
[BlackClock "0:00:17"]
[Board "74"]

1. c4 {[%clk 0:03:00]}  c6 {[%clk 0:02:56]} 2. d4 {[%clk 0:02:59]}  d5 {[%clk 0:02:56]} 3. e3 {[%clk 0:03:00]}  Nf6 {[%clk 0:02:53]} 4. Nc3 {[%clk 0:02:59]}  e6 {[%clk 0:02:52]} 5. Nf3 {[%clk 0:02:59]}  Be7 {[%clk 0:02:52]} 6. Bd3 {[%clk 0:02:56]}  dxc4 {[%clk 0:02:50]} 7. Bxc4 {[%clk 0:02:57]}  b5 {[%clk 0:02:51]} 8. Bd3 {[%clk 0:02:57]}  b4 {[%clk 0:02:51]} 9. Ne4 {[%clk 0:02:57]}  Nbd7 {[%clk 0:02:47]} 10. O-O {[%clk 0:02:55]}  Bb7 {[%clk 0:02:45]} 11. b3 {[%clk 0:02:56]}  c5 {[%clk 0:02:44]} 12. Nxc5 {[%clk 0:02:53]}  Nxc5 {[%clk 0:02:34]} 13. dxc5 {[%clk 0:02:54]}  O-O {[%clk 0:02:24]} 14. Bb2 {[%clk 0:02:50]}  Bxc5 {[%clk 0:02:23]} 15. Qc2 {[%clk 0:02:41]}  Bxf3 {[%clk 0:02:16]} 16. gxf3 {[%clk 0:02:39]}  Rc8 {[%clk 0:02:08]} 17. Rad1 {[%clk 0:02:36]}  Qe7 {[%clk 0:02:05]} 18. Qe2 {[%clk 0:02:35]}  Nd5 {[%clk 0:02:01]} 19. Bb1 {[%clk 0:02:30]}  Qh4 {[%clk 0:01:56]} 20. f4 {[%clk 0:02:27]}  Be7 {[%clk 0:01:52]} 21. Qf3 {[%clk 0:02:16]}  Bf6 {[%clk 0:01:45]} 22. Bd4 {[%clk 0:02:10]}  a5 {[%clk 0:01:31]} 23. Be4 {[%clk 0:02:08]}  Nc3 {[%clk 0:01:25]} 24. Bxc3 {[%clk 0:02:08]}  Rxc3 {[%clk 0:01:22]} 25. Rd7 {[%clk 0:02:02]}  g6 {[%clk 0:01:21]} 26. Rfd1 {[%clk 0:01:59]}  Rfc8 {[%clk 0:01:21]} 27. Kg2 {[%clk 0:01:59]}  Bg7 {[%clk 0:01:17]} 28. Rb7 {[%clk 0:01:58]}  R3c7 {[%clk 0:00:48]} 29. Rb5 {[%clk 0:01:56]}  Qf6 {[%clk 0:00:37]} 30. Rxa5 {[%clk 0:01:54]}  Qb2 {[%clk 0:00:36]} 31. Bd3 {[%clk 0:01:44]}  h5 {[%clk 0:00:34]} 32. Bc4 {[%clk 0:01:41]}  Qc2 {[%clk 0:00:33]} 33. Rd6 {[%clk 0:01:32]}  Bf8 {[%clk 0:00:33]} 34. Rd4 {[%clk 0:01:31]}  Rc5 {[%clk 0:00:32]} 35. Rxc5 {[%clk 0:01:30]}  Bxc5 {[%clk 0:00:33]} 36. Rd7 {[%clk 0:01:30]}  Qxa2 {[%clk 0:00:30]} 37. Rxf7 {[%clk 0:01:02]}  Bxe3 {[%clk 0:00:24]} 38. Rf6 {[%clk 0:00:55]}  Rxc4 {[%clk 0:00:17]} 39. bxc4 {[%clk 0:00:54]}  Bxf2 {[%clk 0:00:17]} 40. Qxf2 {[%clk 0:00:52]}  Qxf2+ {[%clk 0:00:18]} 41. Kxf2 {[%clk 0:00:52]}  b3 {[%clk 0:00:19]} 42. Rxe6 {[%clk 0:00:51]}  b2 {[%clk 0:00:17]} 1-0


[Site "https://www.chess.com"]

[Event "Titled Tuesday Blitz November 14 Early 2023"]
[White "MFatigue"]
[Black "Xu, Yi"]
[BlackFideId "8605564"]
[WhiteElo "2470"]
[BlackElo "2821"]
[Result "1-0"]
[Round "1"]
[TimeControl "180+1"]
[Date "2023.11.14"]
[WhiteClock "0:00:24"]
[BlackClock "0:00:02"]
[Board "75"]

1. e4 {[%clk 0:02:58]}  c5 {[%clk 0:03:00]} 2. a3 {[%clk 0:02:55]}  e6 {[%clk 0:02:58]} 3. b4 {[%clk 0:02:50]}  cxb4 {[%clk 0:02:58]} 4. axb4 {[%clk 0:02:50]}  Bxb4 {[%clk 0:02:58]} 5. Bb2 {[%clk 0:02:50]}  Nf6 {[%clk 0:02:57]} 6. e5 {[%clk 0:02:50]}  Nd5 {[%clk 0:02:57]} 7. c4 {[%clk 0:02:51]}  Nf4 {[%clk 0:02:46]} 8. Qg4 {[%clk 0:02:51]}  Ng6 {[%clk 0:02:46]} 9. h4 {[%clk 0:02:50]}  h5 {[%clk 0:02:45]} 10. Qg3 {[%clk 0:02:51]}  Nc6 {[%clk 0:02:43]} 11. Bd3 {[%clk 0:02:52]}  Nce7 {[%clk 0:02:39]} 12. Nf3 {[%clk 0:02:49]}  d5 {[%clk 0:02:14]} 13. exd6 {[%clk 0:02:09]}  Bxd6 {[%clk 0:01:50]} 14. Qg5 {[%clk 0:02:09]}  Bf4 {[%clk 0:01:50]} 15. Qb5+ {[%clk 0:02:09]}  Bd7 {[%clk 0:01:50]} 16. Qb3 {[%clk 0:02:04]}  Bc6 {[%clk 0:01:50]} 17. Bxg7 {[%clk 0:01:54]}  Rg8 {[%clk 0:01:49]} 18. Bf6 {[%clk 0:01:55]}  Qc7 {[%clk 0:01:05]} 19. Nc3 {[%clk 0:01:27]}  Ne5 {[%clk 0:01:02]} 20. Be2 {[%clk 0:01:16]}  Rxg2 {[%clk 0:00:55]} 21. Nd4 {[%clk 0:00:59]}  Rd8 {[%clk 0:00:42]} 22. Ncb5 {[%clk 0:00:50]}  Qb6 {[%clk 0:00:41]} 23. Rxa7 {[%clk 0:00:45]}  Rxd4 {[%clk 0:00:33]} 24. Nd6+ {[%clk 0:00:45]}  Rxd6 {[%clk 0:00:31]} 25. Qxb6 {[%clk 0:00:45]}  Bxd2+ {[%clk 0:00:17]} 26. Kf1 {[%clk 0:00:41]}  Kd7 {[%clk 0:00:05]} 27. Bxe5 {[%clk 0:00:30]}  Rg8 {[%clk 0:00:05]} 28. Rxb7+ {[%clk 0:00:26]}  Kc8 {[%clk 0:00:02]} 29. Qc7# {[%clk 0:00:24]} 1-0


[Site "https://www.chess.com"]